[Event "Titled Tuesday Blitz March 08 Early 2022"]
[White "Osmonbekov, Talaibek"]
[Black "Pert, Nicholas"]
[WhiteFideId "2017253"]
[BlackFideId "403989"]
[WhiteElo "2135"]
[BlackElo "2536"]
[Result "0-1"]
[Round "01"]
[TimeControl "180+1"]
[Date "2022.03.09"]
[WhiteClock "0:00:06"]
[BlackClock "0:00:19"]

1. d4 {[%clk 0:02:56]}  e6 {[%clk 0:03:00]} 2. Nc3 {[%clk 0:02:55]}  Bb4 {[%clk 0:02:57]} 3. Bd2 {[%clk 0:02:54]}  Nf6 {[%clk 0:02:57]} 4. f3 {[%clk 0:02:52]}  d5 {[%clk 0:02:56]} 5. a3 {[%clk 0:02:52]}  Bxc3 {[%clk 0:02:56]} 6. Bxc3 {[%clk 0:02:52]}  b6 {[%clk 0:02:55]} 7. e3 {[%clk 0:02:49]}  Ba6 {[%clk 0:02:55]} 8. Bxa6 {[%clk 0:02:43]}  Nxa6 {[%clk 0:02:55]} 9. Qd3 {[%clk 0:02:43]}  Qc8 {[%clk 0:02:54]} 10. Ne2 {[%clk 0:02:38]}  O-O {[%clk 0:02:54]} 11. e4 {[%clk 0:02:38]}  c5 {[%clk 0:02:47]} 12. O-O {[%clk 0:02:36]}  cxd4 {[%clk 0:02:45]} 13. Qxd4 {[%clk 0:02:28]}  dxe4 {[%clk 0:02:40]} 14. fxe4 {[%clk 0:02:25]}  Qc5 {[%clk 0:02:40]} 15. Qxc5 {[%clk 0:02:09]}  Nxc5 {[%clk 0:02:41]} 16. Bxf6 {[%clk 0:02:09]}  gxf6 {[%clk 0:02:41]} 17. Rxf6 {[%clk 0:02:09]}  Nxe4 {[%clk 0:02:39]} 18. Rf4 {[%clk 0:02:04]}  f5 {[%clk 0:02:36]} 19. g4 {[%clk 0:01:52]}  Rad8 {[%clk 0:02:31]} 20. gxf5 {[%clk 0:01:48]}  exf5 {[%clk 0:02:32]} 21. Ng3 {[%clk 0:01:47]}  Nxg3 {[%clk 0:01:54]} 22. hxg3 {[%clk 0:01:48]}  Rd2 {[%clk 0:01:54]} 23. Rf2 {[%clk 0:01:48]}  Rxf2 {[%clk 0:01:47]} 24. Kxf2 {[%clk 0:01:48]}  f4 {[%clk 0:01:45]} 25. Rd1 {[%clk 0:01:38]}  fxg3+ {[%clk 0:01:42]} 26. Kxg3 {[%clk 0:01:37]}  Kg7 {[%clk 0:01:38]} 27. Rd6 {[%clk 0:01:31]}  Rf6 {[%clk 0:01:37]} 28. Rd7+ {[%clk 0:01:29]}  Rf7 {[%clk 0:01:37]} 29. Rd6 {[%clk 0:01:29]}  Rc7 {[%clk 0:01:16]} 30. c3 {[%clk 0:01:29]}  Kf7 {[%clk 0:01:17]} 31. Kg4 {[%clk 0:01:22]}  Ke7 {[%clk 0:01:04]} 32. Rh6 {[%clk 0:01:20]}  Kd8 {[%clk 0:01:04]} 33. Kf5 {[%clk 0:01:17]}  Re7 {[%clk 0:00:55]} 34. Rh2 {[%clk 0:01:06]}  Kc7 {[%clk 0:00:51]} 35. Kf6 {[%clk 0:01:04]}  Rd7 {[%clk 0:00:51]} 36. Ke6 {[%clk 0:01:04]}  b5 {[%clk 0:00:43]} 37. Ke5 {[%clk 0:00:55]}  Kc6 {[%clk 0:00:41]} 38. b4 {[%clk 0:00:51]}  Rd5+ {[%clk 0:00:35]} 39. Ke4 {[%clk 0:00:47]}  h5 {[%clk 0:00:34]} 40. Rf2 {[%clk 0:00:40]}  Rd6 {[%clk 0:00:33]} 41. Rf5 {[%clk 0:00:27]}  Rh6 {[%clk 0:00:33]} 42. Rc5+ {[%clk 0:00:26]}  Kb6 {[%clk 0:00:32]} 43. Kf3 {[%clk 0:00:25]}  h4 {[%clk 0:00:32]} 44. Kg2 {[%clk 0:00:25]}  h3+ {[%clk 0:00:31]} 45. Kh2 {[%clk 0:00:26]}  a6 {[%clk 0:00:26]} 46. c4 {[%clk 0:00:25]}  Rc6 {[%clk 0:00:16]} 47. Rh5 {[%clk 0:00:17]}  bxc4 {[%clk 0:00:14]} 48. Rf5 {[%clk 0:00:05]}  c3 {[%clk 0:00:15]} 49. Rf1 {[%clk 0:00:06]}  c2 {[%clk 0:00:15]} 50. Rc1 {[%clk 0:00:07]}  Rc3 {[%clk 0:00:15]} 51. a4 {[%clk 0:00:06]}  Kc6 {[%clk 0:00:16]} 52. Kg1 {[%clk 0:00:04]}  Kd5 {[%clk 0:00:16]} 53. b5 {[%clk 0:00:02]}  axb5 {[%clk 0:00:16]} 54. axb5 {[%clk 0:00:03]}  Kc5 {[%clk 0:00:17]} 55. b6 {[%clk 0:00:03]}  Kxb6 {[%clk 0:00:17]} 56. Kh2 {[%clk 0:00:04]}  Kc5 {[%clk 0:00:18]} 57. Kg1 {[%clk 0:00:05]}  Kc4 {[%clk 0:00:18]} 58. Kh2 {[%clk 0:00:05]}  Kb3 {[%clk 0:00:19]} 59. Kg1 {[%clk 0:00:06]}  Kb2 {[%clk 0:00:19]} 0-1


[Site "https://www.chess.com"]

[Event "Titled Tuesday Blitz March 08 Early 2022"]
[White "Papasimakopoulos, Alexandros"]
[Black "McCoy, Owen"]
[WhiteFideId "4244125"]
[BlackFideId "30924502"]
[WhiteElo "2340"]
[BlackElo "2411"]
[Result "1-0"]
[Round "01"]
[TimeControl "180+1"]
[Date "2022.03.09"]
[WhiteClock "0:00:08"]
[BlackClock "0:00:05"]

1. d4 {[%clk 0:02:41]}  d5 {[%clk 0:02:59]} 2. c4 {[%clk 0:02:22]}  e6 {[%clk 0:02:59]} 3. Nc3 {[%clk 0:02:20]}  Nf6 {[%clk 0:02:59]} 4. cxd5 {[%clk 0:02:19]}  exd5 {[%clk 0:02:59]} 5. Bg5 {[%clk 0:02:16]}  c6 {[%clk 0:02:56]} 6. e3 {[%clk 0:02:14]}  h6 {[%clk 0:02:55]} 7. Bh4 {[%clk 0:02:12]}  Bd6 {[%clk 0:02:54]} 8. Bd3 {[%clk 0:02:09]}  O-O {[%clk 0:02:53]} 9. Qc2 {[%clk 0:02:09]}  Re8 {[%clk 0:02:50]} 10. Nf3 {[%clk 0:02:08]}  Bg4 {[%clk 0:02:20]} 11. O-O {[%clk 0:01:58]}  Bxf3 {[%clk 0:02:01]} 12. gxf3 {[%clk 0:01:59]}  Nbd7 {[%clk 0:01:37]} 13. Bg3 {[%clk 0:01:58]}  Bf8 {[%clk 0:01:36]} 14. Rab1 {[%clk 0:01:57]}  c5 {[%clk 0:01:27]} 15. dxc5 {[%clk 0:01:56]}  Nxc5 {[%clk 0:01:25]} 16. Bb5 {[%clk 0:01:56]}  Re6 {[%clk 0:01:22]} 17. Rfd1 {[%clk 0:01:44]}  a6 {[%clk 0:01:19]} 18. Bf1 {[%clk 0:01:42]}  Rc8 {[%clk 0:01:07]} 19. Bh3 {[%clk 0:01:32]}  Qe8 {[%clk 0:01:00]} 20. Bxe6 {[%clk 0:01:29]}  fxe6 {[%clk 0:01:01]} 21. Qe2 {[%clk 0:01:18]}  Ncd7 {[%clk 0:00:58]} 22. e4 {[%clk 0:01:12]}  Rxc3 {[%clk 0:00:43]} 23. bxc3 {[%clk 0:01:10]}  dxe4 {[%clk 0:00:43]} 24. fxe4 {[%clk 0:01:09]}  Nc5 {[%clk 0:00:43]} 25. e5 {[%clk 0:00:59]}  Nd5 {[%clk 0:00:42]} 26. Rbc1 {[%clk 0:00:52]}  Na4 {[%clk 0:00:40]} 27. Qf3 {[%clk 0:00:47]}  Nb2 {[%clk 0:00:37]} 28. Rd2 {[%clk 0:00:40]}  Na4 {[%clk 0:00:27]} 29. Rxd5 {[%clk 0:00:34]}  exd5 {[%clk 0:00:28]} 30. Qxd5+ {[%clk 0:00:34]}  Kh8 {[%clk 0:00:29]} 31. Qxb7 {[%clk 0:00:26]}  Ba3 {[%clk 0:00:28]} 32. Rc2 {[%clk 0:00:21]}  Qg6 {[%clk 0:00:25]} 33. Qb3 {[%clk 0:00:19]}  Nc5 {[%clk 0:00:23]} 34. Qxa3 {[%clk 0:00:19]}  Qxc2 {[%clk 0:00:22]} 35. Qxc5 {[%clk 0:00:19]}  Qb1+ {[%clk 0:00:20]} 36. Kg2 {[%clk 0:00:19]}  Qxa2 {[%clk 0:00:19]} 37. Qc6 {[%clk 0:00:17]}  a5 {[%clk 0:00:18]} 38. e6 {[%clk 0:00:18]}  Qe2 {[%clk 0:00:18]} 39. Qd7 {[%clk 0:00:10]}  Qe4+ {[%clk 0:00:16]} 40. f3 {[%clk 0:00:10]}  Qc2+ {[%clk 0:00:16]} 41. Bf2 {[%clk 0:00:11]}  Qg6+ {[%clk 0:00:16]} 42. Kf1 {[%clk 0:00:09]}  Qb1+ {[%clk 0:00:16]} 43. Ke2 {[%clk 0:00:10]}  Qa2+ {[%clk 0:00:15]} 44. Ke3 {[%clk 0:00:09]}  Qc4 {[%clk 0:00:13]} 45. e7 {[%clk 0:00:09]}  Qxc3+ {[%clk 0:00:13]} 46. Kf4 {[%clk 0:00:08]}  Qf6+ {[%clk 0:00:13]} 47. Ke4 {[%clk 0:00:08]}  Qg6+ {[%clk 0:00:12]} 48. Kd5 {[%clk 0:00:08]}  Qd3+ {[%clk 0:00:11]} 49. Kc6 {[%clk 0:00:08]}  Qc4+ {[%clk 0:00:09]} 50. Bc5 {[%clk 0:00:08]}  Qa4+ {[%clk 0:00:09]} 51. Kc7 {[%clk 0:00:08]}  Qf4+ {[%clk 0:00:08]} 52. Kc8 {[%clk 0:00:07]}  Qc4 {[%clk 0:00:05]} 53. e8=Q+ {[%clk 0:00:07]}  Kh7 {[%clk 0:00:05]} 54. Qe4+ {[%clk 0:00:08]} 1-0


[Site "https://www.chess.com"]

[Event "Titled Tuesday Blitz March 08 Early 2022"]
[White "Paravyan, David"]
[Black "Vetokhin, Ilia"]
[WhiteFideId "4194985"]
[BlackFideId "24156078"]
[WhiteElo "2569"]
[BlackElo "1897"]
[Result "1-0"]
[Round "01"]
[TimeControl "180+1"]
[Date "2022.03.08"]
[WhiteClock "0:01:36"]
[BlackClock "0:00:11"]

1. e4 {[%clk 0:02:52]}  c5 {[%clk 0:02:58]} 2. Nf3 {[%clk 0:02:51]}  Nc6 {[%clk 0:02:59]} 3. d4 {[%clk 0:02:51]}  cxd4 {[%clk 0:03:00]} 4. Nxd4 {[%clk 0:02:52]}  Nf6 {[%clk 0:03:00]} 5. Nc3 {[%clk 0:02:52]}  d6 {[%clk 0:03:01]} 6. Bg5 {[%clk 0:02:51]}  e6 {[%clk 0:03:01]} 7. Qd2 {[%clk 0:02:51]}  a6 {[%clk 0:03:02]} 8. Nxc6 {[%clk 0:02:51]}  bxc6 {[%clk 0:03:00]} 9. O-O-O {[%clk 0:02:51]}  Qc7 {[%clk 0:02:31]} 10. f4 {[%clk 0:02:47]}  Be7 {[%clk 0:02:24]} 11. Bxf6 {[%clk 0:02:46]}  gxf6 {[%clk 0:02:22]} 12. Bc4 {[%clk 0:02:46]}  Bd7 {[%clk 0:01:56]} 13. Rhe1 {[%clk 0:02:43]}  a5 {[%clk 0:01:51]} 14. Bb3 {[%clk 0:02:40]}  Rg8 {[%clk 0:01:17]} 15. f5 {[%clk 0:02:38]}  e5 {[%clk 0:01:09]} 16. g3 {[%clk 0:02:32]}  Bf8 {[%clk 0:00:56]} 17. Kb1 {[%clk 0:02:27]}  Qb6 {[%clk 0:00:27]} 18. a3 {[%clk 0:02:25]}  Qc7 {[%clk 0:00:27]} 19. Ka1 {[%clk 0:02:24]}  Qb7 {[%clk 0:00:27]} 20. Na4 {[%clk 0:02:23]}  Qc7 {[%clk 0:00:19]} 21. Qd3 {[%clk 0:02:23]}  Qb7 {[%clk 0:00:18]} 22. Qc4 {[%clk 0:02:22]}  Bc8 {[%clk 0:00:18]} 23. Rd2 {[%clk 0:02:21]}  Rg7 {[%clk 0:00:16]} 24. Red1 {[%clk 0:02:21]}  Qc7 {[%clk 0:00:16]} 25. Ka2 {[%clk 0:02:18]}  Ba6 {[%clk 0:00:16]} 26. Qc3 {[%clk 0:02:18]}  Bb5 {[%clk 0:00:16]} 27. Qe3 {[%clk 0:02:05]}  Rb8 {[%clk 0:00:16]} 28. Nc3 {[%clk 0:01:57]}  Ba6 {[%clk 0:00:16]} 29. Ka1 {[%clk 0:01:45]}  Rd8 {[%clk 0:00:16]} 30. Ba4 {[%clk 0:01:39]}  Rb8 {[%clk 0:00:16]} 31. Nd5 {[%clk 0:01:38]}  Qb7 {[%clk 0:00:14]} 32. Qc3 {[%clk 0:01:37]}  Bb5 {[%clk 0:00:13]} 33. Bxb5 {[%clk 0:01:37]}  cxb5 {[%clk 0:00:13]} 34. Nxf6+ {[%clk 0:01:37]}  Ke7 {[%clk 0:00:13]} 35. Rxd6 {[%clk 0:01:36]}  b4 {[%clk 0:00:11]} 36. Qxe5# {[%clk 0:01:36]} 1-0


[Site "https://www.chess.com"]

[Event "Titled Tuesday Blitz March 08 Early 2022"]
[White "Piliczewski, Bogusz"]
[Black "Nozdrachev, Leonid"]
[WhiteFideId "1104144"]
[BlackFideId "24113433"]
[WhiteElo "1896"]
[BlackElo "2118"]
[Result "0-1"]
[Round "01"]
[TimeControl "180+1"]
[Date "2022.03.09"]
[WhiteClock "0:00:04"]
[BlackClock "0:00:04"]

1. d4 {[%clk 0:02:57]}  d6 {[%clk 0:02:58]} 2. Nf3 {[%clk 0:02:57]}  Nf6 {[%clk 0:02:58]} 3. Bf4 {[%clk 0:02:57]}  g6 {[%clk 0:02:57]} 4. h3 {[%clk 0:02:58]}  Bg7 {[%clk 0:02:56]} 5. e3 {[%clk 0:02:59]}  O-O {[%clk 0:02:56]} 6. Be2 {[%clk 0:02:59]}  b6 {[%clk 0:02:55]} 7. O-O {[%clk 0:02:59]}  Bb7 {[%clk 0:02:55]} 8. Nbd2 {[%clk 0:02:59]}  Ne4 {[%clk 0:02:55]} 9. Nxe4 {[%clk 0:02:58]}  Bxe4 {[%clk 0:02:56]} 10. Nd2 {[%clk 0:02:58]}  Bb7 {[%clk 0:02:55]} 11. Bf3 {[%clk 0:02:59]}  Qc8 {[%clk 0:02:54]} 12. c4 {[%clk 0:02:58]}  Nd7 {[%clk 0:02:48]} 13. Rc1 {[%clk 0:02:55]}  e5 {[%clk 0:02:42]} 14. dxe5 {[%clk 0:02:49]}  dxe5 {[%clk 0:02:43]} 15. Bh2 {[%clk 0:02:48]}  Re8 {[%clk 0:02:37]} 16. Be4 {[%clk 0:02:36]}  Nc5 {[%clk 0:02:35]} 17. Bxb7 {[%clk 0:02:33]}  Qxb7 {[%clk 0:02:35]} 18. b4 {[%clk 0:02:13]}  Nd3 {[%clk 0:02:32]} 19. Rb1 {[%clk 0:02:14]}  Rad8 {[%clk 0:02:30]} 20. Qc2 {[%clk 0:02:10]}  c5 {[%clk 0:02:25]} 21. a3 {[%clk 0:02:02]}  e4 {[%clk 0:02:21]} 22. Rfd1 {[%clk 0:02:00]}  Qe7 {[%clk 0:02:10]} 23. b5 {[%clk 0:01:38]}  Qf6 {[%clk 0:02:06]} 24. Nxe4 {[%clk 0:01:21]}  Rxe4 {[%clk 0:02:07]} 25. Rxd3 {[%clk 0:01:20]}  Ree8 {[%clk 0:02:01]} 26. Rbd1 {[%clk 0:01:17]}  Rxd3 {[%clk 0:01:57]} 27. Qxd3 {[%clk 0:01:15]}  h5 {[%clk 0:01:55]} 28. Qd7 {[%clk 0:01:07]}  Re4 {[%clk 0:01:31]} 29. Qd5 {[%clk 0:00:56]}  Qe7 {[%clk 0:01:06]} 30. Bd6 {[%clk 0:00:50]}  Qe6 {[%clk 0:00:54]} 31. Bf4 {[%clk 0:00:43]}  Rxc4 {[%clk 0:00:48]} 32. Qa8+ {[%clk 0:00:34]}  Kh7 {[%clk 0:00:46]} 33. Qxa7 {[%clk 0:00:34]}  Bh6 {[%clk 0:00:21]} 34. Rd7 {[%clk 0:00:26]}  Rc1+ {[%clk 0:00:12]} 35. Kh2 {[%clk 0:00:26]}  Bxf4+ {[%clk 0:00:12]} 36. exf4 {[%clk 0:00:26]}  Kg7 {[%clk 0:00:11]} 37. Rb7 {[%clk 0:00:18]}  Qf6 {[%clk 0:00:08]} 38. g3 {[%clk 0:00:18]}  h4 {[%clk 0:00:07]} 39. Qxb6 {[%clk 0:00:15]}  hxg3+ {[%clk 0:00:08]} 40. Kg2 {[%clk 0:00:10]}  Qxf4 {[%clk 0:00:07]} 41. fxg3 {[%clk 0:00:06]}  Rc2+ {[%clk 0:00:06]} 42. Kg1 {[%clk 0:00:04]}  Qc1# {[%clk 0:00:04]} 0-1


[Site "https://www.chess.com"]

[Event "Titled Tuesday Blitz March 08 Early 2022"]
[White "Pinheiro, Iung Alicio de O."]
[Black "Ardila, Oscar Humberto"]
[WhiteFideId "2104350"]
[BlackFideId "4404742"]
[WhiteElo "2571"]
[BlackElo "1966"]
[Result "1-0"]
[Round "01"]
[TimeControl "180+1"]
[Date "2022.03.09"]
[WhiteClock "0:01:12"]
[BlackClock "0:00:01"]

1. e4 {[%clk 0:03:00]}  e5 {[%clk 0:03:00]} 2. Bc4 {[%clk 0:02:59]}  Nc6 {[%clk 0:03:00]} 3. d3 {[%clk 0:02:58]}  Nf6 {[%clk 0:03:00]} 4. Nc3 {[%clk 0:02:58]}  Bb4 {[%clk 0:03:00]} 5. Ne2 {[%clk 0:02:56]}  d6 {[%clk 0:02:59]} 6. O-O {[%clk 0:02:54]}  Bg4 {[%clk 0:02:59]} 7. f3 {[%clk 0:02:51]}  Bh5 {[%clk 0:02:59]} 8. Be3 {[%clk 0:02:50]}  Bc5 {[%clk 0:02:57]} 9. Qd2 {[%clk 0:02:44]}  Bxe3+ {[%clk 0:02:54]} 10. Qxe3 {[%clk 0:02:44]}  O-O {[%clk 0:02:54]} 11. d4 {[%clk 0:02:37]}  Qe7 {[%clk 0:02:46]} 12. Rad1 {[%clk 0:02:34]}  Rad8 {[%clk 0:02:45]} 13. Nd5 {[%clk 0:02:28]}  Nxd5 {[%clk 0:02:40]} 14. Bxd5 {[%clk 0:02:29]}  exd4 {[%clk 0:02:24]} 15. Nxd4 {[%clk 0:02:24]}  Nxd4 {[%clk 0:02:24]} 16. Qxd4 {[%clk 0:02:23]}  b6 {[%clk 0:02:20]} 17. Bc6 {[%clk 0:02:10]}  Qe5 {[%clk 0:02:18]} 18. Qd5 {[%clk 0:01:54]}  h6 {[%clk 0:01:56]} 19. b4 {[%clk 0:01:46]}  Bg6 {[%clk 0:01:23]} 20. Rd3 {[%clk 0:01:35]}  Kh7 {[%clk 0:01:21]} 21. Rfd1 {[%clk 0:01:34]}  Qxd5 {[%clk 0:01:21]} 22. Rxd5 {[%clk 0:01:28]}  f6 {[%clk 0:01:21]} 23. g4 {[%clk 0:01:22]}  Bf7 {[%clk 0:01:19]} 24. R5d3 {[%clk 0:01:21]}  a6 {[%clk 0:01:16]} 25. Ra3 {[%clk 0:01:20]}  Bd5 {[%clk 0:01:07]} 26. Rxd5 {[%clk 0:01:18]}  a5 {[%clk 0:00:05]} 27. bxa5 {[%clk 0:01:17]}  bxa5 {[%clk 0:00:06]} 28. Raxa5 {[%clk 0:01:14]}  Rb8 {[%clk 0:00:01]} 29. Rdb5 {[%clk 0:01:12]} 1-0


[Site "https://www.chess.com"]

[Event "Titled Tuesday Blitz March 08 Early 2022"]
[White "Roman, Rodrigo"]
[Black "Rastbod, Ali"]
[WhiteFideId "3701220"]
[BlackFideId "12567477"]
[WhiteElo "2001"]
[BlackElo "2200"]
[Result "0-1"]
[Round "01"]
[TimeControl "180+1"]
[Date "2022.03.09"]
[WhiteClock "0:00:55"]
[BlackClock "0:00:23"]

1. e4 {[%clk 0:03:00]}  e6 {[%clk 0:02:52]} 2. d4 {[%clk 0:02:57]}  d5 {[%clk 0:02:52]} 3. Nc3 {[%clk 0:02:57]}  Bb4 {[%clk 0:02:50]} 4. exd5 {[%clk 0:02:55]}  exd5 {[%clk 0:02:49]} 5. Nf3 {[%clk 0:02:55]}  Nf6 {[%clk 0:02:49]} 6. Bd2 {[%clk 0:02:55]}  O-O {[%clk 0:02:49]} 7. Be2 {[%clk 0:02:54]}  Bf5 {[%clk 0:02:49]} 8. O-O {[%clk 0:02:55]}  c6 {[%clk 0:02:48]} 9. a3 {[%clk 0:02:55]}  Bd6 {[%clk 0:02:48]} 10. Bg5 {[%clk 0:02:54]}  Nbd7 {[%clk 0:02:48]} 11. Qd2 {[%clk 0:02:54]}  Qc7 {[%clk 0:02:47]} 12. h3 {[%clk 0:02:50]}  Rfe8 {[%clk 0:02:47]} 13. Bd3 {[%clk 0:02:50]}  Ne4 {[%clk 0:02:47]} 14. Bxe4 {[%clk 0:02:45]}  Bxe4 {[%clk 0:02:45]} 15. Nxe4 {[%clk 0:02:43]}  dxe4 {[%clk 0:02:45]} 16. Ne1 {[%clk 0:02:43]}  h6 {[%clk 0:02:44]} 17. Be3 {[%clk 0:02:43]}  f5 {[%clk 0:02:44]} 18. g3 {[%clk 0:02:41]}  g5 {[%clk 0:02:42]} 19. Ng2 {[%clk 0:02:41]}  Nf6 {[%clk 0:02:40]} 20. c4 {[%clk 0:02:37]}  Rad8 {[%clk 0:02:38]} 21. h4 {[%clk 0:02:30]}  f4 {[%clk 0:02:32]} 22. gxf4 {[%clk 0:02:27]}  gxh4 {[%clk 0:02:32]} 23. Nxh4 {[%clk 0:02:24]}  Kh7 {[%clk 0:02:31]} 24. Kh1 {[%clk 0:02:22]}  Qf7 {[%clk 0:02:14]} 25. Qe2 {[%clk 0:02:17]}  Nh5 {[%clk 0:02:04]} 26. f5 {[%clk 0:02:16]}  Be7 {[%clk 0:01:50]} 27. Qg4 {[%clk 0:02:09]}  Bxh4 {[%clk 0:01:41]} 28. Qxh4 {[%clk 0:02:09]}  Qxf5 {[%clk 0:01:40]} 29. Rg1 {[%clk 0:02:08]}  Rd7 {[%clk 0:01:39]} 30. Rg4 {[%clk 0:02:05]}  Rg7 {[%clk 0:01:15]} 31. Rxg7+ {[%clk 0:02:04]}  Kxg7 {[%clk 0:01:16]} 32. Rg1+ {[%clk 0:02:04]}  Kh7 {[%clk 0:01:16]} 33. Rg5 {[%clk 0:01:56]}  Qf3+ {[%clk 0:01:07]} 34. Rg2 {[%clk 0:01:45]}  Rg8 {[%clk 0:01:04]} 35. Qh2 {[%clk 0:01:34]}  Rg4 {[%clk 0:00:06]} 36. d5 {[%clk 0:01:22]}  cxd5 {[%clk 0:00:06]} 37. cxd5 {[%clk 0:01:22]}  Rxg2 {[%clk 0:00:03]} 38. Qxg2 {[%clk 0:01:23]}  Qd1+ {[%clk 0:00:03]} 39. Kh2 {[%clk 0:01:19]}  Qxd5 {[%clk 0:00:04]} 40. Qg4 {[%clk 0:01:16]}  Nf6 {[%clk 0:00:03]} 41. Qc8 {[%clk 0:01:13]}  Qh5+ {[%clk 0:00:02]} 42. Kg3 {[%clk 0:01:11]}  Qf3+ {[%clk 0:00:02]} 43. Kh2 {[%clk 0:01:08]}  Ng4+ {[%clk 0:00:02]} 44. Kg1 {[%clk 0:01:08]}  Nxe3 {[%clk 0:00:03]} 45. Qxb7+ {[%clk 0:01:05]}  Kg6 {[%clk 0:00:03]} 46. fxe3 {[%clk 0:00:55]}  Qg3+ {[%clk 0:00:03]} 47. Kf1 {[%clk 0:00:55]}  Qf3+ {[%clk 0:00:04]} 48. Kg1 {[%clk 0:00:55]}  Qxe3+ {[%clk 0:00:05]} 49. Kh2 {[%clk 0:00:56]}  Qf2+ {[%clk 0:00:05]} 50. Kh3 {[%clk 0:00:56]}  Qf3+ {[%clk 0:00:06]} 51. Kh2 {[%clk 0:00:56]}  Qf4+ {[%clk 0:00:06]} 52. Kh3 {[%clk 0:00:55]}  Qe3+ {[%clk 0:00:07]} 53. Kg2 {[%clk 0:00:54]}  Qd2+ {[%clk 0:00:06]} 54. Kh3 {[%clk 0:00:53]}  Qd3+ {[%clk 0:00:06]} 55. Kg2 {[%clk 0:00:51]}  e3 {[%clk 0:00:05]} 56. Qc6+ {[%clk 0:00:47]}  Kf5 {[%clk 0:00:04]} 57. Qc8+ {[%clk 0:00:44]}  Ke4 {[%clk 0:00:03]} 58. Qe6+ {[%clk 0:00:45]}  Kd4 {[%clk 0:00:03]} 59. Qd6+ {[%clk 0:00:45]}  Kc4 {[%clk 0:00:03]} 60. Qa6+ {[%clk 0:00:45]}  Kd4 {[%clk 0:00:03]} 61. Qd6+ {[%clk 0:00:46]}  Ke4 {[%clk 0:00:04]} 62. Qe7+ {[%clk 0:00:43]}  Kf4 {[%clk 0:00:02]} 63. Qf6+ {[%clk 0:00:43]}  Qf5 {[%clk 0:00:01]} 64. Qd4+ {[%clk 0:00:43]}  Qe4+ {[%clk 0:00:02]} 65. Qxe4+ {[%clk 0:00:43]}  Kxe4 {[%clk 0:00:02]} 66. Kf1 {[%clk 0:00:44]}  Kd3 {[%clk 0:00:03]} 67. Ke1 {[%clk 0:00:45]}  h5 {[%clk 0:00:04]} 68. a4 {[%clk 0:00:43]}  h4 {[%clk 0:00:05]} 69. b4 {[%clk 0:00:44]}  h3 {[%clk 0:00:06]} 70. Kf1 {[%clk 0:00:45]}  h2 {[%clk 0:00:06]} 71. Kg2 {[%clk 0:00:46]}  e2 {[%clk 0:00:07]} 72. Kxh2 {[%clk 0:00:44]}  e1=Q {[%clk 0:00:08]} 73. b5 {[%clk 0:00:45]}  Qa5 {[%clk 0:00:08]} 74. Kg3 {[%clk 0:00:45]}  Qb6 {[%clk 0:00:09]} 75. Kf4 {[%clk 0:00:45]}  Qa5 {[%clk 0:00:10]} 76. Ke5 {[%clk 0:00:46]}  Qxa4 {[%clk 0:00:11]} 77. Kd6 {[%clk 0:00:47]}  Qxb5 {[%clk 0:00:11]} 78. Kc7 {[%clk 0:00:48]}  a5 {[%clk 0:00:12]} 79. Kc8 {[%clk 0:00:48]}  a4 {[%clk 0:00:13]} 80. Kc7 {[%clk 0:00:49]}  a3 {[%clk 0:00:14]} 81. Kc8 {[%clk 0:00:50]}  a2 {[%clk 0:00:15]} 82. Kc7 {[%clk 0:00:51]}  a1=Q {[%clk 0:00:16]} 83. Kc8 {[%clk 0:00:52]}  Qc3+ {[%clk 0:00:16]} 84. Kd8 {[%clk 0:00:52]}  Kc2 {[%clk 0:00:17]} 85. Ke7 {[%clk 0:00:53]}  Qe2+ {[%clk 0:00:18]} 86. Kd6 {[%clk 0:00:53]}  Qce1 {[%clk 0:00:19]} 87. Kc5 {[%clk 0:00:53]}  Q1d1 {[%clk 0:00:18]} 88. Kb6 {[%clk 0:00:54]}  Kd2 {[%clk 0:00:19]} 89. Kc5 {[%clk 0:00:54]}  Ke1 {[%clk 0:00:20]} 90. Kb4 {[%clk 0:00:54]}  Kf1 {[%clk 0:00:21]} 91. Ka3 {[%clk 0:00:54]}  Qec2 {[%clk 0:00:21]} 92. Kb4 {[%clk 0:00:54]}  Qb3+ {[%clk 0:00:22]} 93. Kc5 {[%clk 0:00:55]}  Qdd5# {[%clk 0:00:23]} 0-1


[Site "https://www.chess.com"]